bitfinex/quotes_SOLUSD_20240612
["timestamp","ask_amount","ask_price","bid_price","bid_amount"]
[1718221999590,100.0,151.94,151.84,6.6939]
[1718221999764,100.0,151.92,151.84,6.6939]
[1718221999961,46.22,151.93,151.84,6.6939]
[1718222000320,146.22,151.89,151.77,6.6802]
[1718222000520,200.0,151.85,151.77,6.6802]
[1718222000791,26.46,151.9,151.77,6.6802]
[1718222000994,20.0,151.89,151.81,2.4371]
[1718222001194,19.76,151.95,151.84,2.4367]
[1718222001363,19.76,151.95,151.83,2.4369]
[1718222001570,19.76,151.95,151.8,0.17]
[1718222001770,126.46,152.0,151.8,0.68]
[1718222001982,26.46,152.0,151.82,0.17]
[1718222002670,19.76,151.95,151.77,6.6802]
[1718222002865,226.46,152.0,151.81,2.4372]
[1718222003069,100.0,151.96,151.78,4.8753]
[1718222003289,20.0,151.95,151.77,6.6802]
[1718222003597,200.0,151.94,151.77,6.6802]
[1718222003772,20.0,151.93,151.77,6.6802]
[1718222004094,20.0,151.95,151.77,106.6802]
[1718222004292,26.46,152.0,151.83,4.8737]
[1718222004601,26.46,152.0,151.87,2.4362]
[1718222004901,26.46,152.0,151.89,16.9379]
[1718222005072,100.0,151.99,151.89,16.9379]
[1718222005390,200.0,151.99,151.89,16.9379]
[1718222005595,100.0,151.99,151.89,16.9379]
[1718222005801,26.46,152.0,151.89,16.9379]
[1718222006287,100.0,151.99,151.89,16.9379]
[1718222006489,100.0,151.97,151.89,16.9379]
[1718222006673,100.0,151.93,151.78,16.7813]
[1718222006984,20.0,151.92,151.8,2.4372]
[1718222007169,20.0,151.92,151.78,16.7813]
[1718222007578,20.0,151.94,151.78,19.2189]
[1718222007767,0.17,151.93,151.79,2.4375]
[1718222008201,100.51,151.93,151.78,16.7813]
[1718222008373,20.0,151.92,151.78,16.7813]
[1718222008773,100.0,152.02,151.78,16.7813]
[1718222008985,126.46,152.0,151.84,2.4367]
[1718222009299,126.46,152.0,151.84,2.4366]
[1718222009502,26.46,152.0,151.83,4.8735]
[1718222009670,26.46,152.0,151.85,0.17]
[1718222009873,26.46,152.0,151.84,2.4366]
[1718222009874,100.0,151.99,151.84,2.4366]
[1718222010080,100.0,151.99,151.83,0.34]
[1718222010279,26.46,152.0,151.82,0.17]
[1718222010280,100.0,151.98,151.82,0.17]
[1718222010512,100.0,151.97,151.78,16.7813]
[1718222010710,100.0,151.97,151.79,0.17]
[1718222010873,100.0,151.93,151.78,16.7813]
[1718222011201,20.0,151.96,151.78,16.7813]
[1718222011408,100.0,151.98,151.85,2.4365]
[1718222011701,20.0,151.97,151.8,4.8745]
[1718222011903,26.46,152.0,151.78,116.7813]
[1718222012083,26.46,152.0,151.88,2.4361]
[1718222012271,26.46,152.0,151.81,0.17]
[1718222012789,7.3131,152.03,151.82,100.0]
[1718222013094,26.46,152.06,151.91,0.17]
[1718222013287,26.46,152.06,151.94,2.4351]
[1718222013471,100.0,152.05,151.9,17.2229]
[1718222013673,26.46,152.06,151.9,17.2229]
[1718222014274,100.0,152.05,151.9,17.2229]
[1718222014470,100.0,152.01,151.9,17.2229]
[1718222014871,119.76,151.99,151.84,6.8393]
[1718222015198,26.46,152.06,151.84,6.8393]
[1718222015199,0.17,151.96,151.84,6.8393]
[1718222015505,0.17,151.92,151.83,16.9907]
[1718222015890,0.17,151.91,151.83,16.9907]
[1718222016080,0.68,151.91,151.83,16.9907]
[1718222016275,119.76,151.91,151.83,16.9907]
[1718222016489,119.76,151.91,151.77,6.5865]
[1718222016490,39.93,151.9,151.77,6.5865]
[1718222016798,100.17,151.89,151.77,6.5865]
[1718222016982,20.0,151.88,151.77,6.5865]
[1718222017189,100.17,151.93,151.77,9.0243]
[1718222017501,100.17,151.91,151.77,6.5865]
[1718222017672,20.0,151.9,151.77,9.0243]
[1718222017873,20.0,151.92,151.79,2.4374]
[1718222018101,20.0,151.92,151.77,6.5865]
[1718222018274,26.46,152.0,151.83,2.4367]
[1718222018595,10.0,152.05,151.77,6.5865]
[1718222018596,5.39692996,152.03,151.81,16.5918]
[1718222018808,100.0,152.05,151.89,2.4359]
[1718222019011,26.46,152.08,151.9,6.6508]
[1718222019310,26.46,152.08,151.91,0.17]
[1718222019612,26.46,152.08,151.94,17.2281]
[1718222019613,100.0,152.07,151.94,17.2281]
[1718222019910,26.46,152.08,151.94,19.6632]
[1718222020078,26.46,152.08,151.94,17.2281]
[1718222020695,100.0,152.07,151.94,17.2281]
[1718222020911,26.46,152.08,151.94,17.2281]
[1718222021407,26.46,152.08,151.95,0.17]
[1718222021703,26.46,152.08,151.94,19.6632]
[1718222021906,26.46,152.08,151.95,0.17]
[1718222022198,26.46,152.08,151.94,19.6632]
[1718222022403,26.46,152.08,151.95,0.51]
[1718222022623,26.46,152.08,151.94,17.2281]
[1718222022778,26.46,152.08,151.95,0.51]
[1718222022978,246.22,152.12,151.95,0.68]
[1718222023298,26.46,152.12,151.95,0.51]
[1718222023486,26.46,152.12,151.99,2.4342]
[1718222023687,26.46,152.12,151.97,2.4346]
[1718222023901,26.46,152.12,152.0,2.434]
[1718222024107,26.46,152.12,151.98,0.34]
[1718222024309,146.22,152.12,151.95,2.4349]
[1718222024611,46.22,152.12,151.97,2.4346]
[1718222024832,146.22,152.12,151.95,2.4348]
[1718222024992,46.22,152.12,151.96,2.4348]
[1718222025318,26.46,152.12,151.94,117.2281]
[1718222025518,126.46,152.16,152.01,0.17]
[1718222025727,126.46,152.16,152.01,2.944]
[1718222026032,126.46,152.16,151.98,0.17]
[1718222026200,146.22,152.16,151.98,0.17]
[1718222026391,26.46,152.16,152.02,6.6312]
[1718222026597,81.14247071,152.21,152.04,0.17]
[1718222026799,100.0,152.22,152.07,2.4329]
[1718222027055,200.0,152.22,152.08,16.4863]
[1718222027193,219.76,152.22,152.08,16.4863]
[1718222028411,119.76,152.22,152.08,16.4863]
[1718222029295,119.76,152.2,152.08,16.4863]
[1718222029599,100.0,152.22,152.08,16.4863]
[1718222029919,100.0,152.22,152.08,18.9191]
[1718222030115,20.0,152.21,152.08,16.4863]
[1718222030615,100.0,152.18,152.08,16.4863]
[1718222030821,119.76,152.14,152.02,6.6312]
[1718222031031,39.76,152.13,152.02,6.6312]
[1718222031235,100.0,152.12,152.02,6.6312]
[1718222031406,20.0,152.11,152.02,6.6312]
[1718222031601,26.46,152.16,152.02,6.6312]
[1718222031929,20.0,152.15,152.02,6.6312]
[1718222032103,20.0,152.15,152.03,2.4336]
[1718222032310,20.0,152.15,152.02,6.6312]
[1718222032505,20.0,152.17,152.04,2.4335]
[1718222032713,19.93,152.19,152.05,2.4333]
[1718222032910,142.87393854,152.24,152.06,0.17]
[1718222033126,142.87393854,152.24,152.03,0.34]
[1718222033325,142.87393854,152.24,152.08,2.4327]
[1718222033499,142.87393854,152.24,152.09,2.4326]
[1718222033812,142.87393854,152.24,152.07,0.17]
[1718222034015,129.090016,152.24,152.07,0.34]
[1718222034315,129.090016,152.24,152.08,2.4329]
[1718222034519,129.090016,152.24,152.09,2.4326]
[1718222034719,2.630016,152.24,152.08,0.17]
[1718222035018,153.41709262,152.27,152.08,0.51]
[1718222035019,100.0,152.27,152.08,0.51]
[1718222035201,100.0,152.27,152.12,2.4322]
[1718222035403,100.0,152.24,152.08,0.51]
[1718222035613,102.629207,152.28,152.08,0.51]
[1718222035814,102.629207,152.28,152.13,2.432]
[1718222036016,2.629207,152.28,152.14,2.4319]
[1718222036209,26.46,152.29,152.14,0.17]
[1718222036407,26.46,152.29,152.13,0.17]
[1718222036608,4.8647,152.29,152.13,5.5441]
[1718222036815,100.0,152.31,152.17,2.4314]
[1718222037115,100.0,152.31,152.14,0.17]
[1718222037334,100.0,152.31,152.16,2.4315]
[1718222037633,100.0,152.3,152.13,0.34]
[1718222037804,100.0,152.3,152.14,2.4319]
[1718222038010,100.0,152.28,152.12,6.3949]
[1718222038203,100.0,152.28,152.12,8.8271]
[1718222038412,20.0,152.27,152.12,6.3949]
[1718222038611,106.3949,152.32,152.18,2.4312]
[1718222038813,106.3949,152.32,152.19,2.4311]
[1718222039108,6.3949,152.32,152.14,17.4368]
[1718222039301,6.3949,152.32,152.15,0.34]
[1718222039516,100.0,152.37,152.15,0.34]
[1718222039725,100.0,152.39,152.17,0.17]
[1718222039926,100.0,152.37,152.17,0.34]
[1718222040125,100.0,152.37,152.18,0.34]
[1718222040431,100.0,152.37,152.14,17.4368]
[1718222040432,100.0,152.33,152.14,17.4368]
[1718222040607,100.0,152.32,152.15,0.51]
[1718222040807,100.0,152.32,152.14,17.4368]
[1718222040808,100.0,152.3,152.14,17.4368]
[1718222041010,200.0,152.3,152.14,17.4368]
[1718222041210,20.0,152.29,152.14,17.4368]
[1718222041429,0.17,152.28,152.14,17.4368]
[1718222041736,0.17,152.26,152.14,17.4368]
[1718222041909,20.0,152.26,152.14,17.4368]
[1718222042430,100.0,152.38,152.14,17.4368]
[1718222042605,100.0,152.38,152.14,117.4368]
[1718222042810,100.0,152.36,152.14,17.4368]
[1718222043022,119.76,152.36,152.14,17.4368]
[1718222043231,100.0,152.38,152.16,100.0]
[1718222043417,100.0,152.4,152.16,100.0]
[1718222043614,100.0,152.4,152.18,0.17]
[1718222043834,19.76,152.34,152.17,0.34]
[1718222044131,26.46,152.37,152.18,0.34]
[1718222044331,100.04096765,152.42,152.21,17.7656]
[1718222044332,126.46,152.41,152.21,17.7656]
[1718222044635,126.46,152.41,152.23,0.17]
[1718222044819,46.22,152.41,152.23,0.17]
[1718222045134,100.0,152.4,152.21,17.5956]
[1718222045338,100.0,152.4,152.22,0.34]
[1718222045631,100.0,152.39,152.21,17.5956]
[1718222045826,26.46,152.41,152.21,17.5956]
[1718222046528,0.04096765,152.42,152.21,17.5956]
[1718222046736,0.04096765,152.42,152.22,0.17]
[1718222046913,0.04096765,152.42,152.22,0.68]
[1718222047621,119.76,152.4,152.22,0.68]
[1718222047923,119.76,152.4,152.21,17.5956]
[1718222047924,26.46,152.4,152.21,17.5956]
[1718222048126,126.46,152.4,152.21,17.5956]
[1718222048330,100.0,152.38,152.21,17.5956]
[1718222048635,0.17,152.39,152.21,17.5956]
[1718222048835,26.46,152.4,152.21,17.5956]
[1718222049040,0.04096765,152.42,152.21,17.5956]
[1718222049344,139.80096765,152.42,152.21,17.5956]
[1718222049639,19.76,152.4,152.22,0.51]
[1718222049813,120.04096765,152.42,152.22,0.51]
[1718222050014,19.76,152.41,152.22,0.51]
[1718222050210,119.76,152.4,152.22,0.51]
[1718222050432,20.04096765,152.42,152.21,17.5956]
[1718222050433,219.76,152.38,152.21,17.5956]
[1718222050633,20.17,152.37,152.21,17.5956]
[1718222050825,0.04096765,152.42,152.21,17.5956]
[1718222051143,100.0,152.38,152.21,17.5956]
[1718222051362,119.76,152.36,152.21,17.5956]
[1718222051852,19.76,152.36,152.21,17.5956]
[1718222052012,20.0,152.37,152.21,17.5956]
[1718222052324,100.0,152.36,152.21,17.5956]
[1718222052838,100.0,152.32,152.21,17.5956]
[1718222053142,26.46,152.34,152.21,17.5956]
[1718222053342,20.0,152.33,152.21,17.5956]
[1718222053556,0.34,152.32,152.21,17.5956]
[1718222054213,20.0,152.34,152.21,17.5956]
[1718222054419,0.34,152.33,152.21,17.5956]
[1718222054641,100.17,152.32,152.21,17.5956]
[1718222054941,0.17,152.33,152.21,17.5956]
[1718222055148,0.17,152.37,152.22,2.4305]
[1718222055441,0.17,152.33,152.21,20.0263]
[1718222055643,100.0,152.35,152.23,2.4305]
[1718222055946,26.46,152.38,152.28,2.4296]
[1718222056245,100.0,152.39,152.22,9.7223]
[1718222056246,100.0,152.39,152.22,0.17]
[1718222056445,100.0,152.37,152.25,2.4301]
[1718222056647,100.0,152.39,152.25,2.4301]
[1718222056941,100.0,152.39,152.24,4.8605]
[1718222057245,19.76,152.38,152.25,2.4301]
[1718222057443,19.76,152.37,152.21,17.5956]
[1718222057649,200.0,152.4,152.25,2.4301]
[1718222057847,100.0,152.36,152.21,20.0263]
[1718222058044,119.76,152.35,152.21,17.5956]
[1718222058440,26.46,152.4,152.21,17.5956]
[1718222058441,100.0,152.39,152.21,22.457]
[1718222058645,100.0,152.35,152.23,2.4304]
[1718222058957,100.0,152.35,152.21,17.5956]
[1718222058958,20.0,152.34,152.21,17.5956]
[1718222059262,19.76,152.39,152.22,9.7227]
[1718222059548,119.76,152.37,152.21,17.5956]
[1718222059729,119.76,152.32,152.21,17.5956]
[1718222059924,19.76,152.28,152.21,17.5956]
[1718222060171,100.0,152.29,152.21,17.5956]
[1718222060471,100.17,152.29,152.21,17.5956]
[1718222060624,0.17,152.27,152.21,17.5956]
[1718222060833,0.17,152.31,152.21,17.5956]
[1718222061038,100.0,152.32,152.21,17.5956]
[1718222061345,0.17,152.28,152.21,17.5956]
[1718222061548,19.76,152.26,152.21,17.5956]
[1718222061765,19.76,152.26,152.1,5.27238268]
[1718222061766,19.76,152.26,152.14,22.7759]
[1718222062077,120.44,152.25,152.14,22.7759]
[1718222062296,119.76,152.27,152.14,22.7759]
[1718222062562,0.17,152.26,152.16,2.4315]
[1718222062782,126.46,152.32,152.14,27.6396]
[1718222062935,20.17,152.31,152.14,22.7759]
[1718222063135,20.0,152.31,152.21,2.4307]
[1718222063344,20.0,152.31,152.17,9.7255]
[1718222063651,31.62307783,152.4,152.14,22.7759]
[1718222063652,100.0,152.36,152.21,4.8617]
[1718222063827,100.0,152.36,152.25,2.4301]
[1718222064032,100.0,152.41,152.19,0.17]
[1718222064239,0.04096765,152.42,152.3,2.4293]
[1718222064443,119.76,152.41,152.28,2.4295]
[1718222064629,119.76,152.39,152.22,5.031]
[1718222064854,119.76,152.36,152.21,2.4307]
[1718222065032,0.04096765,152.42,152.22,0.17]
[1718222065033,100.0,152.38,152.22,0.17]
[1718222065238,100.0,152.41,152.24,4.8607]
[1718222065434,19.76,152.4,152.27,2.4298]
[1718222065659,100.0,152.4,152.25,45.0]
[1718222065928,100.0,152.37,152.24,2.4303]
[1718222066143,100.0,152.37,152.24,2.4302]
[1718222066348,19.76,152.36,152.19,0.51]
[1718222066540,19.76,152.36,152.2,0.17]
[1718222066760,119.76,152.35,152.18,23.3168]
[1718222067256,100.0,152.38,152.22,4.8613]
[1718222067257,0.17,152.37,152.22,4.8613]
[1718222067435,0.17,152.37,152.19,7.2934]
[1718222067436,0.17,152.33,152.21,2.4307]
[1718222067630,0.51,152.33,152.21,2.4307]
[1718222067837,0.17,152.33,152.19,4.8621]
[1718222068160,100.0,152.34,152.22,1.9305]
[1718222068570,100.0,152.34,152.18,23.3168]
[1718222068571,100.0,152.32,152.18,23.3168]
[1718222068867,0.17,152.27,152.18,23.3168]
[1718222069083,119.76,152.25,152.18,23.3168]
[1718222069369,0.34,152.24,152.18,23.3168]
[1718222069674,0.51,152.24,152.18,23.3168]
[1718222069964,100.0,152.23,152.17,2.9342]
[1718222070145,100.0,152.23,152.12,19.5278]
[1718222070464,0.17,152.25,152.12,17.0956]
[1718222070639,0.17,152.23,152.12,17.0956]
[1718222070848,19.93,152.21,152.12,17.0956]
[1718222071146,20.34,152.2,152.1,6.724]
[1718222071339,0.17,152.19,152.1,6.724]
[1718222071643,0.17,152.15,152.05,16.0262]
[1718222071844,100.0,152.14,152.05,16.0262]
[1718222072084,100.0,152.15,152.05,16.0262]
[1718222072268,0.51,152.14,152.05,16.0262]
[1718222072473,20.51,152.14,152.05,16.0262]
[1718222072642,100.0,152.13,152.05,16.0262]
[1718222072978,140.27,152.14,152.05,16.0262]
[1718222072979,20.34,152.14,152.05,16.0262]
[1718222073141,100.0,152.13,152.05,16.0262]
[1718222073338,40.1,152.14,152.05,16.0262]
[1718222073563,0.17,152.13,152.05,16.0262]
[1718222073948,20.34,152.14,152.05,16.0262]
[1718222074149,0.17,152.11,151.99,6.8499]
[1718222074361,40.44,152.11,151.99,6.8499]
[1718222074543,0.17,152.09,151.99,9.2842]
[1718222075051,0.17,152.09,151.99,6.8499]
[1718222075258,39.93,152.09,151.99,6.8499]
[1718222075559,0.17,152.07,151.99,6.8499]
[1718222076141,20.0,152.09,152.0,2.434]
[1718222076346,126.46,152.14,152.02,2.4338]
[1718222076568,100.0,152.16,152.02,4.8677]
[1718222076745,100.0,152.23,152.01,9.7361]
[1718222076952,100.0,152.23,152.03,12.1681]
[1718222076953,100.0,152.21,152.03,12.1681]
[1718222077175,19.76,152.2,152.03,4.8672]
[1718222077473,41.74412059,152.24,152.09,2.4327]
[1718222077474,26.46,152.24,152.09,2.4327]
[1718222077669,100.0,152.19,152.07,2.433]
[1718222077876,100.0,152.17,152.02,5.3708]
[1718222078173,26.46,152.24,152.02,2.9371]
[1718222078174,119.76,152.14,152.02,2.9371]
[1718222078381,19.76,152.12,152.02,2.9371]
[1718222078556,100.0,152.13,152.02,2.9371]
[1718222079070,0.17,152.16,152.03,2.4335]
[1718222079247,0.17,152.14,152.0,2.434]
[1718222079559,20.0,152.14,152.03,2.4336]
[1718222079758,20.0,152.14,152.0,4.8683]
[1718222079962,100.0,152.13,151.99,6.8499]
[1718222080150,119.76,152.13,152.0,2.4341]
[1718222080348,20.0,152.16,151.99,6.8499]
[1718222080565,20.0,152.16,152.0,0.17]
[1718222080870,126.46,152.19,152.0,0.34]
[1718222081054,126.46,152.24,152.01,0.34]
[1718222081245,46.22,152.24,152.03,0.17]
[1718222081451,115.28412059,152.26,152.06,0.17]
[1718222081674,100.0,152.22,152.06,0.51]
[1718222081844,100.0,152.21,152.05,6.7911]
[1718222082043,100.0,152.18,152.05,6.7911]
[1718222082271,19.76,152.21,152.05,6.7911]
[1718222082468,139.76,152.2,152.05,6.7911]
[1718222082676,119.76,152.2,152.05,6.7911]
[1718222082863,0.17,152.19,152.05,6.7911]
[1718222083054,126.46,152.24,152.06,0.51]
[1718222083244,119.76,152.22,152.06,0.17]
[1718222083646,19.76,152.19,152.05,6.7911]
[1718222084048,100.0,152.22,152.05,6.7911]
[1718222084371,100.0,152.2,152.05,6.7911]
[1718222084588,0.17,152.17,152.05,6.7911]
[1718222084762,20.68,152.17,152.05,6.7911]
[1718222084948,100.0,152.14,152.05,6.7911]
[1718222085149,20.51,152.13,152.05,6.7911]
[1718222085376,0.17,152.11,152.05,6.7911]
[1718222085553,100.0,152.16,152.05,6.7911]
[1718222085875,0.17,152.15,152.05,6.7911]
[1718222086072,0.17,152.13,152.05,6.7911]
[1718222086264,20.44,152.13,152.05,6.7911]
[1718222086463,20.44,152.13,152.02,17.227]
[1718222086667,0.17,152.08,151.99,6.3703]
[1718222086878,119.76,152.07,151.99,6.3703]
[1718222087053,0.17,152.08,151.94,17.4894]
[1718222087054,0.17,152.04,151.94,17.4894]
[1718222087254,0.17,152.02,151.94,17.4894]
[1718222087558,0.51,152.02,151.94,17.4894]
[1718222088054,40.27,152.02,151.94,17.4894]
[1718222088378,20.0,152.02,151.94,17.4894]
[1718222088672,19.76,152.05,151.94,17.4894]
[1718222088673,0.17,152.05,151.94,17.4894]
[1718222088979,20.0,152.06,151.94,17.4894]
[1718222089156,100.0,152.09,151.94,17.4894]
[1718222089477,15.28412059,152.15,151.94,17.4894]
[1718222089478,119.76,152.05,151.94,17.4894]
[1718222089653,20.0,152.04,151.94,17.4894]
[1718222089975,100.0,152.07,151.94,17.4894]
[1718222090174,20.0,152.06,151.94,17.4894]
[1718222090359,100.0,152.11,151.94,17.4894]
[1718222090571,15.28412059,152.15,151.94,17.4894]
[1718222090572,100.0,152.13,151.94,17.4894]
[1718222090754,100.0,152.15,151.95,2.9385]
[1718222090963,100.0,152.15,151.96,0.17]
[1718222091174,100.0,152.13,151.96,0.17]
[1718222091400,100.0,152.15,151.96,0.51]
[1718222091561,119.76,152.13,151.96,0.17]
[1718222091755,219.76,152.13,151.96,0.17]
[1718222092160,119.76,152.13,151.96,0.17]
[1718222092407,119.76,152.11,151.96,0.17]
[1718222092679,0.17,152.1,151.96,0.17]
[1718222093484,126.46,152.16,151.96,0.34]
[1718222093685,126.46,152.16,151.97,3.1081]
[1718222093870,126.46,152.16,151.98,0.51]
[1718222094272,126.46,152.16,151.97,2.9381]
[1718222094273,100.0,152.14,151.97,2.9381]
[1718222094475,119.76,152.14,151.98,0.17]
[1718222094871,119.76,152.12,151.97,2.9381]
[1718222095074,19.76,152.09,151.97,2.9381]
[1718222095271,100.0,152.08,151.97,2.9381]
[1718222095561,0.17,152.05,151.97,2.9381]
[1718222095988,40.27,152.05,151.97,2.9381]
[1718222096461,19.93,152.03,151.97,2.9381]
[1718222096668,0.17,152.01,151.97,2.9381]
[1718222096886,19.76,152.0,151.87,24.0729]
[1718222097068,0.17,152.0,151.87,24.0729]
[1718222097273,20.0,152.02,151.87,24.0729]
[1718222097493,0.17,152.02,151.87,24.0729]
[1718222097665,0.17,152.0,151.87,24.0729]
[1718222097862,200.17,152.0,151.87,24.0729]
[1718222098192,0.17,151.98,151.87,24.0729]
[1718222099309,20.0,151.99,151.87,24.0729]
[1718222099488,20.17,152.0,151.87,24.0729]
[1718222100191,19.76,152.02,151.87,24.0729]
[1718222100395,19.76,152.03,151.87,24.0729]
[1718222100621,100.0,152.01,151.87,24.0729]
[1718222100909,100.0,151.99,151.87,24.0729]
[1718222101082,100.0,151.98,151.87,24.0729]
[1718222101286,119.76,151.98,151.87,24.0729]
[1718222101504,100.0,151.96,151.87,24.0729]
[1718222101707,0.34,151.95,151.87,24.0729]
[1718222102016,119.93,151.9,151.8,7.0284]
[1718222102218,119.93,151.9,151.62,100.0]
[1718222102219,100.17,151.88,151.65,24.6238]
[1718222102432,100.0,151.86,151.65,24.6238]
[1718222102716,20.0,151.87,151.66,102.9441]
[1718222102895,0.17,151.85,151.66,2.9441]
[1718222103097,20.34,151.85,151.66,2.9441]
[1718222103815,126.46,151.88,151.67,2.9439]
[1718222103995,100.0,151.93,151.69,106.7227]
[1718222104203,100.0,151.97,151.74,33.9074]
[1718222104418,100.0,151.99,151.75,100.0]
[1718222104629,100.0,151.97,151.76,17.3181]
[1718222104920,100.0,151.99,151.77,0.17]
[1718222105119,26.46,152.0,151.77,0.17]
[1718222105120,100.0,151.96,151.77,3.282]
[1718222105341,100.0,151.98,151.78,0.34]
[1718222105504,100.0,151.98,151.8,0.17]
[1718222105686,200.0,152.06,151.82,0.17]
[1718222105895,200.0,152.06,151.86,0.17]
[1718222105896,100.0,152.06,151.86,0.17]
[1718222106100,41.74412059,152.08,151.88,0.17]
[1718222106101,100.0,152.05,151.88,0.17]
[1718222106294,126.46,152.08,151.89,16.7507]
[1718222106516,105.3041587,152.12,151.89,16.7507]
[1718222106517,100.0,152.14,151.92,0.17]
[1718222106697,100.0,152.17,151.96,0.17]
[1718222106898,100.0,152.15,151.97,2.9381]
[1718222107203,100.0,152.1,151.97,2.9381]
[1718222107400,26.46,152.15,151.97,2.9381]
[1718222107627,26.46,152.15,151.98,0.34]
[1718222107794,26.46,152.19,151.99,0.34]
[1718222107998,100.0,152.17,152.01,16.0337]
[1718222108193,100.0,152.18,152.01,16.0337]
[1718222108194,26.46,152.18,152.01,16.0337]
[1718222108396,100.0,152.2,152.02,0.51]
[1718222108599,100.0,152.19,152.01,16.0337]
[1718222108841,100.0,152.16,152.01,16.0337]
[1718222109005,100.0,152.2,152.01,16.0337]
[1718222109204,100.0,152.13,152.01,16.0337]
[1718222109913,126.46,152.15,152.01,16.0337]
[1718222110111,100.0,152.17,152.01,16.0337]
[1718222110421,126.46,152.23,152.03,0.17]
[1718222110628,100.0,152.23,152.03,0.51]
[1718222110830,26.299791,152.25,152.04,0.17]
[1718222111001,26.299791,152.25,152.05,0.17]
[1718222111002,100.0,152.25,152.05,0.17]
[1718222111201,126.46,152.27,152.05,0.51]
[1718222111443,126.46,152.27,152.06,0.17]
[1718222111727,3.2769,152.24,152.08,0.17]
[1718222112029,126.46,152.32,152.08,0.17]
[1718222112030,126.46,152.32,152.08,0.51]
[1718222112236,126.46,152.32,152.1,0.17]
[1718222112413,126.46,152.32,152.1,0.68]
[1718222112605,100.0,152.31,152.1,0.68]
[1718222112808,100.0,152.31,152.12,0.17]
[1718222113114,126.46,152.32,152.14,0.17]
[1718222113325,126.46,152.32,152.14,0.51]
[1718222113626,100.0,152.32,152.16,0.17]
[1718222113838,26.282025,152.35,152.17,6.555]
[1718222114040,116.6859775,152.42,152.18,0.68]
[1718222114201,3.1046,152.37,152.2,0.17]
[1718222114536,3.1046,152.37,152.19,16.2053]
[1718222114537,100.0,152.34,152.19,16.2053]
[1718222114702,3.1046,152.37,152.2,0.68]
[1718222114906,100.04096765,152.42,152.2,0.68]
[1718222115121,100.04096765,152.42,152.21,6.6374]
[1718222115305,100.04096765,152.42,152.22,100.68]
[1718222115306,0.04096765,152.42,152.22,100.68]
[1718222115510,0.04096765,152.42,152.24,100.17]
[1718222115712,126.260061,152.48,152.29,0.17]